bitfinex/quotes_ETHUSD_20210401
["timestamp","ask_amount","ask_price","bid_price","bid_amount"]
[1617287201139,0.38,1927.9,1927.6,10.38055]
[1617287201540,0.41,1927.8,1927.6,10.38055]
[1617287201841,0.41,1927.8,1927.6,13.48055]
[1617287202044,0.38,1927.9,1927.6,13.48055]
[1617287202361,0.20008294,1928.2,1927.6,13.89055]
[1617287202544,2.75,1928.1,1927.7,7.82969894]
[1617287202743,3.95,1928.1,1927.7,7.78563]
[1617287203144,0.4,1928.0,1927.7,7.78563]
[1617287205373,4.34,1928.1,1927.7,7.78563]
[1617287205566,4.34,1928.1,1927.7,10.54563]
[1617287206469,0.4,1928.0,1927.6,10.38055]
[1617287208392,0.4,1927.9,1927.6,10.38055]
[1617287210422,0.4,1927.8,1927.6,10.38055]
[1617287212453,3.95,1928.0,1927.6,10.38055]
[1617287212653,4.35,1928.0,1927.6,10.38055]
[1617287214854,0.4,1927.8,1927.6,10.38055]
[1617287216394,3.95,1928.0,1927.6,10.38055]
[1617287216794,3.95,1928.0,1927.6,16.99313]
[1617287217293,3.32670324,1928.1,1927.6,16.99313]
[1617287217701,9.40180881,1928.0,1927.7,7.78541]
[1617287218398,10.0,1927.8,1927.7,7.78541]
[1617287218602,10.0,1927.8,1927.4,16.68926]
[1617287218603,10.38,1927.8,1927.4,16.68926]
[1617287218799,7.66,1927.5,1927.4,24.68926]
[1617287219001,7.66,1927.5,1927.4,20.79655]
[1617287219698,7.66,1927.5,1927.4,13.01]
[1617287220201,16.2101,1927.5,1927.3,5.01]
[1617287220417,16.2101,1927.5,1927.1,10.38296]
[1617287221019,17.4101,1927.5,1927.1,10.38296]
[1617287221421,3.08,1927.4,1927.1,10.38296]
[1617287222520,7.66,1927.5,1927.1,10.38296]
[1617287224959,7.66,1927.5,1927.2,3.89363]
[1617287225877,8.86,1927.5,1927.0,31.33516]
[1617287226185,0.4,1927.3,1927.0,27.1614]
[1617287226412,0.4,1927.3,1927.0,12.1845]
[1617287226611,17.9414,1927.5,1927.0,12.1845]
[1617287226918,3.44,1927.4,1927.0,12.5945]
[1617287227111,1.2,1927.4,1927.1,11.6817]
[1617287228013,7.4632422,1927.3,1927.1,5.9583]
[1617287228210,0.39,1927.3,1927.1,8.6783]
[1617287228417,0.39,1927.3,1927.2,7.78744]
[1617287229014,8.45,1927.5,1927.2,7.78744]
[1617287229212,1.6,1927.5,1927.2,7.78744]
[1617287230512,0.4,1927.5,1927.2,7.78744]
[1617287231247,0.4,1927.5,1927.1,6.6139]
[1617287231547,0.4,1927.5,1927.1,14.40143]
[1617287231845,1.34,1927.6,1927.1,14.40143]
[1617287232045,10.0,1927.8,1927.2,0.41]
[1617287232245,10.14,1927.8,1927.3,0.746]
[1617287232445,19.12701,1927.8,1927.4,0.4]
[1617287232951,11.34,1927.8,1927.4,0.4]
[1617287233556,11.34,1927.8,1927.4,8.1863]
[1617287233953,11.2,1927.8,1927.4,8.1863]
[1617287235553,11.58,1927.8,1927.4,7.7863]
[1617287235960,11.58,1927.8,1927.4,11.1263]
[1617287236186,11.58,1927.8,1927.4,3.34]
[1617287236782,19.36717,1927.8,1927.4,3.34]
[1617287237084,19.36717,1927.8,1927.3,4.22915]
[1617287237278,11.58,1927.8,1927.3,4.22915]
[1617287237880,11.2,1927.8,1927.4,0.38]
[1617287238180,11.2,1927.8,1927.5,0.4]
[1617287238581,11.2,1927.8,1927.3,4.22915]
[1617287238804,11.2,1927.8,1927.4,0.41]
[1617287239605,11.2,1927.8,1927.3,7.14915]
[1617287239806,2.92,1927.7,1927.3,7.14915]
[1617287240408,0.39,1927.5,1927.3,2.92]
[1617287240610,2.85940392,1927.4,1926.9,14.75186894]
[1617287240809,2.85940392,1927.4,1926.7,24.43809]
[1617287240810,0.4,1927.2,1926.7,24.43809]
[1617287241010,10.375,1927.2,1926.7,14.056]
[1617287241212,2.85940392,1927.1,1926.7,14.056]
[1617287241472,1.2,1927.0,1926.7,14.056]
[1617287241667,2.85940392,1927.1,1926.7,14.056]
[1617287241867,2.85940392,1927.1,1926.7,18.576]
[1617287242078,4.05940392,1927.1,1926.7,18.576]
[1617287243370,4.05940392,1927.1,1926.7,14.056]
[1617287243570,4.05940392,1927.1,1926.5,8.18026]
[1617287243571,2.85940392,1926.9,1926.5,7.79026]
[1617287243870,4.59940392,1926.9,1926.4,12.461641]
[1617287244115,1.34,1926.9,1926.5,0.41]
[1617287245109,1.34,1926.9,1926.4,13.141641]
[1617287245711,0.14,1926.9,1926.5,4.28497]
[1617287245916,7.42443714,1927.0,1926.5,4.15457]
[1617287246118,7.42443714,1927.0,1926.6,0.336]
[1617287246315,7.42443714,1927.0,1926.6,8.12559]
[1617287246522,7.42443714,1927.0,1926.6,0.336]
[1617287247324,7.42443714,1927.0,1926.6,4.23094]
[1617287247512,8.62443714,1927.0,1926.6,3.89494]
[1617287247712,6.90403714,1926.9,1926.6,3.89494]
[1617287248013,8.10403714,1926.9,1926.6,3.89494]
[1617287248212,7.38812827,1926.8,1926.6,3.89494]
[1617287249338,1.2,1926.9,1926.6,3.89494]
[1617287249539,4.43940392,1926.8,1926.6,3.89494]
[1617287250142,12.23051392,1926.8,1926.6,3.89494]
[1617287250441,0.14,1927.0,1926.6,3.89494]
[1617287250642,2.7,1926.9,1926.6,3.89494]
[1617287250844,2.85940392,1926.8,1926.6,3.89494]
[1617287251143,4.05940392,1926.8,1926.3,0.41]
[1617287251344,4.58940392,1926.8,1926.2,5.19306]
[1617287251645,35.04181,1926.7,1926.2,5.19306]
[1617287251900,35.04181,1926.7,1926.1,0.85]
[1617287251901,9.28347159,1926.3,1926.1,0.85]
[1617287252100,13.3,1926.2,1926.0,5.19298]
[1617287252302,12.1,1926.2,1926.0,5.19298]
[1617287252502,2.96,1926.1,1926.0,5.19298]
[1617287252701,7.2101,1926.3,1926.0,5.59298]
[1617287252902,0.55,1926.6,1926.0,8.43519024]
[1617287253112,0.55,1926.6,1926.0,2.0777186]
[1617287253113,7.20937391,1926.6,1926.0,2.0777186]
[1617287253504,17.20937391,1926.6,1926.1,0.4]
[1617287253703,7.20937391,1926.5,1926.2,0.4]
[1617287254109,7.20937391,1926.5,1926.2,13.62993024]
[1617287254304,7.20937391,1926.5,1926.3,0.39]
[1617287255305,7.20937391,1926.5,1926.3,2.4674409]
[1617287255604,7.20937391,1926.5,1926.2,21.62772]
[1617287255809,7.20937391,1926.5,1926.3,3.54]
[1617287256847,7.20937391,1926.5,1926.3,11.33056]
[1617287257046,7.20937391,1926.5,1926.3,13.4079788]
[1617287257655,7.20937391,1926.5,1926.4,23.17221024]
[1617287257853,7.20937391,1926.5,1926.4,36.29221024]
[1617287258061,7.20937391,1926.5,1926.4,47.02758123]
[1617287258252,7.20937391,1926.5,1926.4,48.08328123]
[1617287258453,7.20937391,1926.5,1926.4,46.31851024]
[1617287259053,7.20937391,1926.5,1926.4,48.08328123]
[1617287259872,7.20937391,1926.5,1926.4,47.02758123]
[1617287260268,7.20937391,1926.5,1926.4,48.22758123]
[1617287260466,7.20937391,1926.5,1926.4,47.02758123]
[1617287260666,7.20937391,1926.5,1926.4,48.22758123]
[1617287261267,7.23992252,1927.4,1926.8,0.41]
[1617287261472,7.37992252,1927.4,1926.8,13.11731394]
[1617287261668,7.37992252,1927.4,1926.8,13.32907394]
[1617287262068,7.23992252,1927.4,1926.8,13.32907394]
[1617287262270,7.23992252,1927.4,1926.8,18.33907394]
[1617287262781,7.23992252,1927.4,1926.8,13.11907394]
[1617287262968,7.23992252,1927.4,1926.8,10.33907394]
[1617287263168,7.23992252,1927.4,1926.9,7.78798]
[1617287263472,17.23992252,1927.4,1926.9,7.78798]
[1617287263769,10.81992252,1927.3,1926.9,7.78798]
[1617287264068,7.23992252,1927.2,1926.9,11.68798]
[1617287264269,7.23992252,1927.2,1926.9,11.96798]
[1617287264769,7.23992252,1927.2,1926.9,3.9]
[1617287264987,7.23992252,1927.2,1926.8,2.4868637]
[1617287265588,0.41,1927.1,1926.8,2.0768637]
[1617287265793,7.64992252,1927.1,1926.8,2.0768637]
[1617287265992,0.38,1927.0,1926.8,2.0768637]
[1617287266393,7.61992252,1927.0,1926.8,2.0768637]
[1617287266588,7.23992252,1927.0,1926.8,2.0768637]
[1617287267289,7.23992252,1927.0,1926.8,4.7968637]
[1617287267715,7.23992252,1927.0,1926.9,7.79]
[1617287268315,7.23992252,1927.0,1926.9,13.67221024]
[1617287268718,7.23992252,1927.0,1926.9,21.67221024]
[1617287269324,7.23992252,1927.0,1926.9,18.83]
[1617287269519,7.23992252,1927.0,1926.9,3.04]
[1617287271044,7.23992252,1927.0,1926.8,8.0]
[1617287271355,7.23992252,1927.0,1926.7,5.29]
[1617287272156,7.23992252,1927.0,1926.7,2.84221024]
[1617287272556,7.23992252,1927.0,1926.8,0.38]
[1617287272764,7.23992252,1927.0,1926.9,17.84221024]
[1617287272970,7.23992252,1927.0,1926.9,27.38941024]
[1617287273171,7.23992252,1927.0,1926.9,31.48941024]
[1617287273382,7.23992252,1927.0,1926.9,39.48941024]
[1617287274170,7.23992252,1927.0,1926.9,41.54895623]
[1617287275170,7.23992252,1927.0,1926.9,48.54895623]
[1617287276016,7.23992252,1927.7,1927.1,5.01]
[1617287276217,7.62992252,1927.7,1927.1,12.701]
[1617287276413,7.62992252,1927.7,1927.2,1.80194913]
[1617287276613,0.38,1927.6,1927.2,3.87837973]
[1617287276813,0.38,1927.6,1927.3,7.78636]
[1617287277013,0.38,1927.6,1927.3,15.78636]
[1617287277014,7.61992252,1927.6,1927.3,15.78636]
[1617287277214,7.61992252,1927.6,1927.3,19.28636]
[1617287279817,7.61992252,1927.6,1927.3,24.29636]
[1617287280117,7.23992252,1927.6,1927.3,24.68636]
[1617287280319,7.23992252,1927.6,1927.5,5.01]
[1617287280525,7.23992252,1927.6,1927.5,0.01]
[1617287280747,7.23992252,1927.6,1927.3,11.28636]
[1617287281047,7.23992252,1927.6,1927.3,1.51144913]
[1617287281446,7.23992252,1927.6,1927.2,2.3564306]
[1617287281645,0.41,1927.5,1927.2,2.3564306]
[1617287281846,7.23992252,1927.5,1927.2,2.3564306]
[1617287283573,7.23992252,1927.5,1927.2,10.1436506]
[1617287283970,7.23992252,1927.5,1927.2,12.8636506]
[1617287285075,7.62992252,1927.5,1927.2,12.8636506]
[1617287285274,7.62992252,1927.5,1927.2,10.1436506]
[1617287285676,11.15,1927.3,1927.2,2.0764306]
[1617287285877,14.0205614,1927.3,1927.0,10.38216]
[1617287286104,14.0205614,1927.3,1926.8,16.1566655]
[1617287286105,0.4,1927.1,1926.8,16.1566655]
[1617287286699,0.4,1927.1,1926.8,9.8654255]
[1617287287699,17.98992252,1927.3,1926.9,0.38]
[1617287287903,17.98992252,1927.3,1926.9,8.16779]
[1617287288097,27.98992252,1927.3,1926.9,8.16779]
[1617287288724,27.98992252,1927.3,1926.9,16.16779]
[1617287288919,27.98992252,1927.3,1927.0,9.8645419]
[1617287288920,7.89,1927.1,1927.0,9.8645419]
[1617287289420,0.39,1927.1,1927.0,9.8645419]
[1617287290020,17.23992252,1927.3,1927.0,9.8645419]
[1617287290021,17.62992252,1927.3,1927.0,9.8645419]
[1617287290720,17.62992252,1927.3,1927.0,17.8645419]
[1617287290920,17.62992252,1927.3,1927.0,12.7967419]
[1617287291122,17.23992252,1927.3,1927.0,12.7967419]
[1617287291741,17.23992252,1927.3,1927.0,4.7967419]
[1617287292141,0.38,1927.2,1927.0,4.7967419]
[1617287292343,0.38,1927.2,1927.0,2.0767419]
[1617287292541,0.38,1927.2,1927.0,9.8647119]
[1617287292740,0.38,1927.2,1927.0,2.0767419]
[1617287294068,0.38,1927.2,1927.0,9.8646719]
[1617287294368,0.38,1927.2,1927.0,2.0767419]
[1617287294768,7.7917,1927.2,1927.0,2.0767419]
[1617287295269,7.7917,1927.2,1926.8,7.78881]
[1617287295469,3.92,1927.1,1926.8,7.78881]
[1617287295670,7.7917,1927.2,1926.8,7.78881]
[1617287295871,7.4117,1927.2,1926.8,13.82881]
[1617287296271,7.4117,1927.2,1926.8,15.905873]
[1617287296499,7.8017,1927.2,1926.8,15.905873]
[1617287297092,7.8017,1927.2,1926.8,8.117063]
[1617287297295,7.4117,1927.2,1926.8,8.517063]
[1617287297593,7.4117,1927.2,1926.9,0.39]
[1617287298094,7.4117,1927.2,1927.0,7.78829]
[1617287298497,7.4117,1927.2,1927.0,4.8566433]
[1617287299320,7.4117,1927.2,1927.0,2.0766433]
[1617287300121,17.63992252,1927.3,1927.1,7.78757]
[1617287300528,17.23992252,1927.3,1927.1,7.78757]
[1617287300729,17.23992252,1927.3,1927.1,15.78757]
[1617287301121,17.62992252,1927.3,1927.1,15.78757]
[1617287301743,17.23992252,1927.3,1927.1,15.78757]
[1617287302241,17.62992252,1927.3,1927.1,7.78757]
[1617287302846,12.2705614,1927.2,1927.0,2.0766433]
[1617287303050,15.3905614,1927.2,1927.0,2.0766433]
[1617287303251,12.6705614,1927.2,1927.0,2.0766433]
[1617287303453,12.6705614,1927.2,1926.9,10.38367]
[1617287303749,9.4,1927.2,1926.9,10.38367]
[1617287305293,7.4,1927.2,1926.9,10.38367]
[1617287305592,7.4,1927.2,1926.9,10.79367]
[1617287308236,7.23992252,1927.3,1926.9,10.79367]
[1617287308535,7.23992252,1927.3,1926.9,10.38367]
[1617287309335,3.2761945,1927.2,1926.9,18.38367]
[1617287309539,3.2761945,1927.2,1926.9,10.38367]
[1617287309736,3.2761945,1927.2,1926.8,2.3570546]
[1617287310136,2.8761945,1927.2,1926.8,6.7170546]
[1617287310337,2.8761945,1927.2,1926.8,4.64]
[1617287310638,7.23992252,1927.3,1926.9,0.41]
[1617287310840,15.02866252,1927.3,1926.9,0.41]
[1617287312144,15.02866252,1927.3,1926.9,2.4868181]
[1617287313348,2.8761945,1927.2,1926.9,2.4868181]
[1617287313545,2.8761945,1927.2,1926.9,2.0768181]
[1617287314652,9.5132945,1927.2,1926.9,2.0768181]
[1617287314869,2.8,1927.1,1926.8,0.28]
[1617287315070,10.58911,1927.1,1926.6,28.55691]
[1617287315269,10.58911,1927.1,1926.8,8.0]
[1617287315270,7.78911,1927.1,1926.8,8.0]
[1617287315471,7.78911,1927.1,1926.6,28.55691]
[1617287315472,7.78911,1927.1,1926.6,30.6340044]
[1617287315873,7.78911,1927.1,1926.6,22.8448944]
[1617287316175,16.1261945,1927.0,1926.6,12.0978]
[1617287316397,0.38,1926.9,1926.6,12.0978]
[1617287316598,2.8761945,1926.8,1926.6,12.0978]
[1617287316806,11.0534945,1926.8,1926.6,12.0978]
[1617287317101,12.45,1926.7,1926.6,12.0978]
[1617287317304,20.24129,1926.7,1926.6,12.0978]
[1617287317998,20.63129,1926.7,1926.2,14.5902]
[1617287318199,20.63129,1926.7,1926.2,2.0776174]
[1617287318398,4.68,1926.6,1926.2,2.0776174]
[1617287319297,9.64,1926.7,1926.2,2.0776174]
[1617287319799,9.25,1926.7,1926.3,0.4]
[1617287320001,9.25,1926.7,1926.4,0.4]
[1617287320835,9.66,1926.7,1926.3,0.28]
[1617287321239,9.66,1926.7,1926.4,9.8669912]
[1617287321438,9.25,1926.7,1926.4,10.0772612]
[1617287322648,9.25,1926.7,1926.4,2.0772612]
[1617287323046,11.2418,1926.8,1926.4,2.0772612]
[1617287323547,3.0,1926.7,1926.4,2.0772612]
[1617287323754,3.0,1926.7,1926.4,4.8572612]
[1617287324348,3.0,1926.7,1926.4,2.0772612]
[1617287326767,3.0,1926.7,1926.5,0.4]
[1617287326968,13.15910882,1927.0,1926.6,0.4]
[1617287327176,0.15910882,1927.0,1926.6,0.4]
[1617287327469,3.15910882,1927.0,1926.6,0.4]
[1617287328091,6.03530332,1927.0,1926.6,0.4]
[1617287328292,3.0,1926.9,1926.6,2.4771817]
[1617287328592,3.0,1926.9,1926.6,2.0771817]
[1617287329092,2.8761945,1926.8,1926.6,2.0771817]
[1617287329293,2.8761945,1926.8,1926.4,2.0773862]
[1617287329492,0.4,1926.7,1926.4,2.0773862]
[1617287330393,2.8761945,1926.8,1926.4,2.0773862]
[1617287330619,3.2761945,1926.8,1926.4,2.0773862]
[1617287331022,4.4761945,1926.8,1926.4,2.0773862]
[1617287331222,12.2669045,1926.8,1926.4,2.0773862]
[1617287333746,11.8669045,1926.8,1926.4,2.0773862]
[1617287334546,4.0761945,1926.8,1926.4,2.0773862]
[1617287334852,0.14,1926.9,1926.7,0.4]
[1617287335046,3.0,1926.9,1926.7,0.4]
[1617287335455,0.15910882,1927.0,1926.8,0.38]
[1617287336173,5.2884525,1927.2,1926.8,0.38]
[1617287336378,5.2884525,1927.2,1926.8,0.66]
[1617287336572,8.2884525,1927.2,1926.8,0.66]
[1617287337175,8.2884525,1927.2,1926.8,8.44817]
[1617287338375,8.2884525,1927.2,1926.8,10.5250128]
[1617287339300,8.2884525,1927.2,1926.9,7.78807]
[1617287340102,13.6284525,1927.2,1926.8,2.3568428]
[1617287340608,0.39,1927.1,1926.8,2.3568428]
[1617287340804,14.0284525,1927.2,1926.8,2.3568428]
[1617287341125,8.6884525,1927.2,1926.8,2.3568428]
[1617287341622,4.08,1927.1,1926.8,2.3568428]
[1617287342225,4.08,1927.1,1926.8,10.1451528]
[1617287342424,8.6884525,1927.2,1926.8,10.1451528]
[1617287342725,8.6884525,1927.2,1926.8,2.3568428]
[1617287343749,8.6884525,1927.2,1926.8,10.1453028]
[1617287345153,16.4775325,1927.2,1926.8,2.3568428]
[1617287345357,4.55,1927.1,1926.8,2.3568428]
[1617287345563,7.42023734,1927.1,1926.8,2.3568428]
[1617287346059,3.98,1927.0,1926.4,31.00123]
[1617287346258,0.4,1927.0,1926.5,0.294]
[1617287346776,0.4,1927.0,1926.6,2.0772201]
[1617287346777,23.54403734,1926.9,1926.6,2.0772201]
[1617287346985,24.40243734,1926.9,1926.4,12.2059]
[1617287347186,4.84,1926.8,1926.4,12.2059]
[1617287347478,0.4,1926.8,1926.4,12.2059]
[1617287347683,14.3784,1926.9,1926.6,0.38]
[1617287347684,0.9984,1926.9,1926.6,0.38]
[1617287347980,1.36441313,1927.0,1926.7,0.38]
[1617287347981,0.16441313,1927.0,1926.7,0.38]
[1617287348879,5.2884525,1927.2,1926.7,0.66]
[1617287349096,13.4576325,1927.2,1926.7,10.1458761]
[1617287349302,3.3,1927.1,1926.7,10.1458761]
[1617287349497,6.17023734,1927.1,1926.7,10.1458761]
[1617287349698,6.17023734,1927.1,1926.8,3.15284062]
[1617287349699,3.3,1927.1,1926.8,3.15284062]
[1617287349896,5.2884525,1927.2,1926.8,0.38]
[1617287350100,5.2884525,1927.2,1926.8,8.16846]
[1617287350397,5.2884525,1927.2,1926.8,7.78846]
[1617287351296,5.6784525,1927.2,1926.7,10.66416]
[1617287351497,3.6,1927.1,1926.7,10.66416]
[1617287351943,5.6784525,1927.2,1926.7,10.66416]
[1617287352347,13.4675025,1927.2,1926.7,10.66416]
[1617287352946,0.4,1926.9,1926.7,10.38416]
[1617287353147,3.27023734,1926.9,1926.5,12.9812836]
[1617287353349,3.27023734,1926.9,1926.6,7.78953]
[1617287353548,7.7554,1926.9,1926.6,7.78953]
[1617287353948,7.3554,1926.9,1926.6,7.78953]
[1617287355851,7.3554,1926.9,1926.7,3.27023734]
[1617287356154,7.3554,1926.9,1926.8,7.45]
[1617287356874,7.3554,1926.9,1926.8,15.23847]
[1617287357375,7.3554,1926.9,1926.8,17.93847]
[1617287358574,7.3554,1926.9,1926.8,17.53847]
[1617287358775,0.39,1927.3,1926.8,17.53847]
[1617287358979,0.53,1927.3,1926.8,17.81847]
[1617287359175,0.39,1927.3,1926.8,17.81847]
[1617287359375,0.39,1927.3,1926.9,2.87023734]
[1617287359601,0.39,1927.3,1927.0,7.78775]
[1617287360102,0.39,1927.3,1926.9,4.3]
[1617287360303,0.26933454,1927.4,1926.9,4.3]
[1617287360504,0.41,1927.3,1926.8,10.525266]
[1617287360706,8.05764454,1927.4,1926.8,0.28]
[1617287360707,0.39,1927.2,1926.8,0.28]
[1617287361432,0.4,1927.0,1926.8,0.16922234]
[1617287361632,0.67,1927.2,1926.8,0.16922234]
[1617287362130,8.45891,1927.2,1926.8,0.16922234]
[1617287363633,0.41,1927.0,1926.8,0.16922234]
[1617287363834,7.5745,1927.0,1926.7,7.78866]
[1617287368877,0.41,1927.1,1926.7,7.78866]
[1617287369779,1.2818,1927.2,1926.8,4.94705484]
[1617287369997,1.2818,1927.2,1926.8,2.0768175]
[1617287369998,0.28,1927.2,1926.8,2.0768175]
[1617287370198,0.28,1927.2,1926.9,0.4]
[1617287370502,0.28,1927.2,1926.8,5.33705484]
[1617287370698,0.28,1927.2,1927.0,7.78756]
[1617287371399,0.28,1927.2,1927.0,9.8642401]
[1617287371804,0.28,1927.2,1927.0,2.0766801]
[1617287372937,0.4,1927.3,1927.0,2.0766801]
[1617287375038,8.19737454,1927.4,1927.0,2.0766801]
[1617287375553,9.00316845,1927.3,1927.0,2.0766801]
[1617287376449,4.88,1927.2,1927.0,2.0766801]
[1617287376651,4.88,1927.2,1926.9,8.0]
[1617287376855,4.88,1927.2,1926.8,0.41]
[1617287377250,4.88,1927.2,1926.8,8.41]
[1617287378079,12.66876,1927.2,1926.8,8.41]
[1617287378377,4.88,1927.2,1926.8,2.4869388]
[1617287379182,4.88,1927.2,1926.8,10.2752288]
[1617287379377,7.78863,1927.3,1926.8,18.2752288]
[1617287379581,7.78863,1927.3,1926.8,21.4552288]
[1617287379777,7.78863,1927.3,1926.8,13.6669388]
[1617287380179,7.78863,1927.3,1926.8,10.4869388]
[1617287380379,7.78863,1927.3,1926.8,3.53000998]
[1617287380623,7.78863,1927.3,1926.8,2.4869388]
[1617287381223,0.4,1927.2,1926.8,2.0769388]
[1617287381823,23.40077022,1927.4,1926.8,2.0769388]
[1617287382023,23.80077022,1927.4,1926.8,4.8369388]
[1617287382227,23.80077022,1927.4,1926.8,2.0769388]
[1617287382625,7.78886,1927.2,1926.8,2.0769388]
[1617287382828,9.52138022,1927.4,1926.8,2.4769388]
[1617287383228,7.64138022,1927.4,1927.0,0.38]
[1617287383427,7.64138022,1927.4,1927.0,0.52]
[1617287383631,7.64138022,1927.4,1927.0,8.3077]
[1617287383829,0.19098022,1927.4,1927.0,0.14]
[1617287384529,7.97920022,1927.4,1927.0,0.14]
[1617287385029,8.36920022,1927.4,1927.0,0.14]
[1617287386252,12.26367022,1927.4,1927.0,0.14]
[1617287386457,4.08,1927.3,1927.0,0.14]
[1617287386654,13.778,1927.3,1927.0,0.14]
[1617287387056,7.78884,1927.2,1927.0,0.14]
[1617287387260,13.778,1927.3,1927.0,0.14]
[1617287387261,9.698,1927.3,1927.0,0.14]
[1617287387956,9.698,1927.3,1927.0,8.54]
[1617287388157,9.698,1927.3,1927.0,0.54]
[1617287388376,9.598,1927.3,1927.0,0.14]
[1617287389978,17.3864,1927.3,1927.0,0.14]
[1617287393208,3.22,1927.2,1927.0,0.14]
[1617287393508,11.00901,1927.2,1927.0,0.14]
[1617287394330,3.22,1927.2,1927.0,0.14]
[1617287394538,9.598,1927.3,1927.0,0.14]
[1617287394730,22.26386022,1927.4,1927.0,0.14]
[1617287395031,5.22,1927.3,1927.0,0.14]
[1617287395529,22.26386022,1927.4,1927.0,0.14]
[1617287396381,0.41,1927.2,1926.9,7.78845]
[1617287396583,2.02035688,1927.3,1926.9,7.78845]
[1617287396584,0.28,1927.3,1926.9,7.78845]
[1617287396784,8.47868,1927.3,1926.8,2.0769629]
[1617287396983,10.49903346,1927.3,1926.8,2.0769629]
[1617287397884,0.69,1927.3,1926.8,3.10757826]
[1617287398085,0.69,1927.3,1926.8,2.0769629]
[1617287398285,11.49671916,1927.4,1926.9,0.4]
[1617287398785,11.49671916,1927.4,1926.8,2.0769629]
[1617287398985,4.17951916,1927.4,1926.8,2.4669629]
[1617287399188,0.28504916,1927.4,1927.0,7.78804]
[1617287399391,0.19098022,1927.4,1927.0,7.78804]
[1617287400290,8.38926022,1927.4,1927.0,9.8648504]
[1617287400688,0.60098022,1927.4,1927.0,9.8648504]
[1617287401088,0.19098022,1927.4,1927.0,9.8648504]
[1617287401503,7.97926022,1927.4,1927.0,9.8648504]
[1617287401803,8.36926022,1927.4,1927.0,9.8648504]
[1617287402809,7.97926022,1927.4,1927.0,9.8648504]
[1617287403209,0.19098022,1927.4,1927.0,9.8648504]
[1617287403509,0.19098022,1927.4,1927.0,2.0768104]
[1617287403806,0.19098022,1927.4,1927.0,2.4868104]
[1617287404634,8.06794,1927.5,1927.1,7.78734]
[1617287404833,8.06794,1927.5,1927.0,2.4868104]
[1617287405033,8.44794,1927.5,1927.0,2.0768104]
[1617287405232,8.54200894,1927.5,1927.0,2.0768104]
[1617287405436,8.44794,1927.5,1927.0,2.0768104]
[1617287405833,8.44794,1927.5,1927.0,2.1268104]
[1617287406135,3.02,1927.4,1927.0,2.1268104]
[1617287406754,0.66,1927.5,1927.1,7.78753]
[1617287408557,0.66,1927.5,1927.0,2.1268104]
[1617287408756,4.44,1927.4,1927.0,2.1268104]
[1617287409157,0.66,1927.5,1927.0,2.1268104]
[1617287409406,3.53023734,1927.5,1927.1,7.78751]
[1617287409606,2.68,1927.4,1927.0,2.1268104]
[1617287410007,1.86,1927.5,1927.0,2.1268104]
[1617287410407,1.86,1927.5,1927.0,9.9143504]
[1617287411118,4.73023734,1927.5,1927.0,9.9143504]
[1617287412108,12.46803734,1927.5,1927.0,9.9143504]
[1617287412709,11.98803734,1927.5,1927.0,9.9143504]
[1617287412910,9.1178,1927.5,1927.1,0.4]
[1617287413116,7.9178,1927.5,1927.1,0.4]
[1617287413510,10.78803734,1927.5,1927.0,9.9143504]
[1617287413712,7.9178,1927.5,1927.0,10.2943504]
[1617287414214,7.9178,1927.5,1927.0,8.21754]
[1617287415233,0.13,1927.5,1927.0,8.21754]
[1617287416033,11.22131543,1927.6,1927.0,8.21754]
[1617287416243,17.98545351,1927.8,1927.3,0.39]
[1617287416535,17.98545351,1927.8,1927.6,0.38]
[1617287416536,10.19878351,1927.8,1927.6,0.38]
[1617287416939,13.38,1927.8,1927.4,6.3222]
[1617287417136,10.0,1927.8,1927.4,6.3222]
[1617287417357,10.0,1927.8,1927.4,14.10834]
[1617287417564,10.0,1927.8,1927.4,6.3222]
[1617287417759,2.87023734,1927.7,1927.2,11.37925]
[1617287417959,3.01023734,1927.7,1927.2,10.66135]
[1617287419260,4.2,1927.6,1927.2,10.66135]
[1617287419460,4.59,1927.6,1927.2,10.66135]
[1617287420084,4.2,1927.6,1927.2,10.66135]
[1617287420284,0.997,1927.5,1927.2,10.66135]
[1617287423311,0.997,1927.5,1927.2,10.38135]
[1617287424713,0.997,1927.5,1927.2,18.38135]
[1617287424913,0.997,1927.5,1927.2,21.16135]
[1617287425455,0.997,1927.5,1927.2,21.21135]
[1617287426859,0.997,1927.5,1927.2,18.43135]
[1617287427860,0.997,1927.5,1927.3,7.7866]
[1617287428058,1.23959122,1927.5,1927.3,7.7866]
[1617287430061,1.23959122,1927.5,1927.3,10.5266]
[1617287431084,1.23959122,1927.5,1927.4,15.49]
[1617287431284,1.23959122,1927.5,1927.4,24.3957]
[1617287431486,1.23959122,1927.5,1927.4,32.3957]
[1617287431784,1.23959122,1927.5,1927.4,29.7957]
[1617287431982,1.23959122,1927.5,1927.4,14.6957]
[1617287432482,1.23959122,1927.5,1927.4,14.3057]
[1617287433111,1.23959122,1927.5,1927.3,7.7866]
[1617287433510,1.23959122,1927.5,1927.3,15.7866]
[1617287434810,19.51,1927.4,1927.3,7.7866]
[1617287435015,19.51,1927.4,1927.2,10.71135]
[1617287435213,19.1,1927.4,1927.2,18.71135]
[1617287435415,3.1,1927.3,1927.2,18.71135]
[1617287435639,3.1,1927.3,1927.2,18.43135]
[1617287437142,3.1,1927.3,1927.2,19.47399713]
[1617287437345,3.1,1927.3,1927.2,18.43135]
[1617287437643,10.0,1927.4,1927.2,21.19135]
[1617287437944,10.0,1927.4,1927.3,5.01]
[1617287438143,10.0,1927.4,1927.3,3.98]
[1617287438343,10.0,1927.4,1927.2,0.05]